bitfinex/quotes_SOLUSD_20251226
["timestamp","ask_amount","ask_price","bid_price","bid_amount"]
[1766759105056,13.9,124.73,124.72,0.72]
[1766759105576,8.01596417,124.76,124.72,0.72]
[1766759105775,8.01217851,124.81,124.75,0.72]
[1766759105995,17.60908195,124.8,124.76,0.72]
[1766759106151,0.68,124.79,124.76,0.72]
[1766759106469,2.30908195,124.78,124.74,0.72]
[1766759106672,14.64,124.77,124.74,0.72]
[1766759110271,14.64,124.76,124.74,0.72]
[1766759111183,13.92,124.76,124.73,2.30908195]
[1766759111402,13.18,124.76,124.73,2.30908195]
[1766759112274,0.68,124.78,124.74,8.01657681]
[1766759112597,14.64,124.77,124.74,8.01657681]
[1766759115704,14.64,124.77,124.73,10.32617219]
[1766759118008,14.64,124.77,124.73,3.61108727]
[1766759118805,15.34,124.77,124.73,3.61108727]
[1766759119504,15.34,124.77,124.72,11.6290475]
[1766759122008,15.34,124.77,124.73,11.62794701]
[1766759125817,15.34,124.77,124.72,11.6290475]
[1766759126610,11.6252041,124.78,124.74,0.7]
[1766759129019,12.3252041,124.78,124.74,0.7]
[1766759136027,8.01411683,124.78,124.74,0.7]
[1766759136228,11.6252041,124.78,124.74,0.7]
[1766759137208,8.01411683,124.78,124.74,0.7]
[1766759139008,8.01346261,124.79,124.74,0.7]
[1766759140128,8.01346261,124.79,124.75,0.7]
[1766759142412,8.01346261,124.79,124.75,8.71585416]
[1766759143434,8.01346261,124.79,124.75,0.7]
[1766759143819,8.01346261,124.79,124.74,8.01643039]
[1766759146232,18.45065798,124.8,124.74,8.01643039]
[1766759146722,18.45065798,124.8,124.74,28.05811709]
[1766759148336,44.05450866,124.85,124.74,28.05811709]
[1766759148635,10.43767296,124.82,124.74,28.05811709]
[1766759150530,8.01217851,124.81,124.74,28.05811709]
[1766759156423,10.43767296,124.78,124.73,8.0172505]
[1766759156622,34.46767296,124.78,124.71,0.2]
[1766759156827,49.10767296,124.78,124.7,14.84]
[1766759158518,10.43767296,124.74,124.7,14.84]
[1766759160845,8.0173174,124.73,124.7,14.84]
[1766759161148,8.0173174,124.73,124.69,0.2]
[1766759161343,28.06061091,124.73,124.69,0.2]
[1766759163349,28.06061091,124.73,124.68,0.2]
[1766759164049,10.43767296,124.7,124.67,0.2]
[1766759164246,10.43767296,124.69,124.66,0.2]
[1766759166047,18.45759092,124.69,124.66,0.2]
[1766759168035,8.0173174,124.73,124.66,0.2]
[1766759168238,28.06061091,124.73,124.66,0.2]
[1766759168555,10.43767296,124.7,124.66,0.2]
[1766759170055,20.04077308,124.75,124.68,8.02053256]
[1766759170639,8.01538954,124.76,124.68,8.02053256]
[1766759170840,8.01538954,124.76,124.67,8.02093381]
[1766759171040,10.43767296,124.73,124.67,8.02093381]
[1766759171346,8.01494612,124.77,124.67,8.02093381]
[1766759171549,8.01494612,124.77,124.68,10.43767296]
[1766759171756,12.20154495,124.79,124.68,25.07767296]
[1766759171942,10.43767296,124.75,124.69,8.01988932]
[1766759172260,10.43767296,124.75,124.69,22.65988932]
[1766759172956,10.43767296,124.75,124.69,14.64]
[1766759174061,18.45376632,124.75,124.7,8.01924619]
[1766759175941,18.45376632,124.75,124.71,0.69]
[1766759184657,18.45320428,124.76,124.72,0.69]
[1766759184858,8.01498198,124.77,124.72,0.69]
[1766759185264,10.43767296,124.76,124.72,0.69]
[1766759187394,18.45345307,124.76,124.72,0.69]
[1766759204221,8.01451098,124.78,124.73,0.69]
[1766759204373,8.01451098,124.78,124.74,0.69]
[1766759207906,8.01451098,124.78,124.73,22.65672151]
[1766759211506,28.04977304,124.78,124.73,14.64]
[1766759211689,28.04977304,124.78,124.7,69.51884508]
[1766759212506,10.43767296,124.75,124.7,8.01884508]
[1766759216512,18.45371691,124.75,124.7,8.01884508]
[1766759219109,8.01567466,124.76,124.7,8.01884508]
[1766759230519,8.01567466,124.76,124.69,8.0196365]
[1766759230717,10.43767296,124.73,124.69,8.0196365]
[1766759231418,28.05414852,124.76,124.69,8.0196365]
[1766759231604,10.43767296,124.75,124.69,8.0196365]
[1766759234220,38.49420401,124.75,124.69,8.0196365]
[1766759234727,38.49420401,124.75,124.68,8.02028455]
[1766759238722,93.21436433,124.75,124.66,0.2]
[1766759238928,93.21436433,124.75,124.66,8.22178669]
[1766759239646,117.28436433,124.75,124.66,0.2]
[1766759240226,121.47159808,124.75,124.66,0.2]
[1766759244939,10.43767296,124.7,124.66,0.2]
[1766759245847,11.12767296,124.7,124.67,0.71]
[1766759246049,11.12767296,124.7,124.66,0.2]
[1766759246546,0.69,124.69,124.66,0.2]
[1766759248028,0.69,124.69,124.66,0.91]
[1766759248228,0.69,124.69,124.67,0.71]
[1766759250238,19.14727368,124.7,124.67,0.71]
[1766759250435,18.45727368,124.7,124.67,0.71]
[1766759250633,0.69,124.69,124.67,0.71]
[1766759253753,19.11727368,124.7,124.67,0.71]
[1766759254154,0.66,124.69,124.67,0.71]
[1766759254754,0.66,124.69,124.66,0.2]
[1766759256961,0.66,124.69,124.66,0.91]
[1766759257542,0.66,124.68,124.66,0.2]
[1766759257857,0.66,124.68,124.65,15.35]
[1766759262259,0.66,124.68,124.65,0.71]
[1766759266270,0.66,124.68,124.66,0.68]
[1766759266675,0.66,124.68,124.65,0.68]
[1766759279287,11.12767296,124.7,124.66,0.68]
[1766759279664,11.12767296,124.7,124.67,0.68]
[1766759280386,0.69,124.7,124.66,23.34121399]
[1766759280681,0.69,124.7,124.67,8.0210708]
[1766759280860,0.69,124.7,124.68,0.68]
[1766759282181,0.69,124.7,124.67,8.0210708]
[1766759282491,0.69,124.7,124.67,8.7010708]
[1766759283180,0.69,124.7,124.67,8.0210708]
[1766759283372,0.69,124.7,124.68,0.68]
[1766759285689,0.69,124.69,124.66,14.64]
[1766759286064,0.69,124.69,124.66,15.32]
[1766759293993,0.69,124.69,124.66,22.66166786]
[1766759294381,0.69,124.69,124.67,0.71]
[1766759294882,0.69,124.7,124.67,0.71]
[1766759296901,0.69,124.7,124.67,8.73101612]
[1766759300396,0.69,124.71,124.68,0.71]
[1766759300699,0.69,124.71,124.66,23.37153724]
[1766759301811,0.69,124.7,124.67,0.71]
[1766759305196,0.69,124.69,124.65,8.73227503]
[1766759305401,0.69,124.69,124.66,14.64]
[1766759310014,8.70997642,124.69,124.65,0.71]
[1766759310220,0.69,124.68,124.65,14.64]
[1766759310517,11.12767296,124.71,124.65,0.71]
[1766759310816,0.69,124.7,124.65,0.71]
[1766759313126,0.69,124.7,124.66,8.02181934]
[1766759313317,0.69,124.7,124.67,15.35]
[1766759313706,0.69,124.7,124.67,14.64]
[1766759313924,0.69,124.7,124.68,0.71]
[1766759314123,0.69,124.7,124.67,14.64]
[1766759314298,0.69,124.7,124.67,15.35]
[1766759315122,8.70932339,124.7,124.67,15.35]
[1766759315325,10.43767296,124.69,124.64,0.2]
[1766759315517,10.43767296,124.69,124.62,8.02438145]
[1766759315816,10.43767296,124.67,124.61,0.2]
[1766759317323,38.51404067,124.66,124.59,14.84]
[1766759325028,53.15404067,124.66,124.59,14.84]
[1766759325219,2.31724322,124.61,124.59,14.84]
[1766759325417,10.34235031,124.61,124.59,14.84]
[1766759325616,2.31724322,124.6,124.56,0.2]
[1766759326014,2.31724322,124.6,124.57,8.0276118]
[1766759326427,33.10142326,124.63,124.57,8.0276118]
[1766759326742,2.31724322,124.6,124.57,8.0276118]
[1766759327821,8.02440339,124.62,124.57,8.0276118]
[1766759328028,2.31724322,124.6,124.57,8.0276118]
[1766759329920,8.02440339,124.62,124.57,8.0276118]
[1766759330219,2.31724322,124.6,124.57,8.0276118]
[1766759332227,2.31724322,124.59,124.56,0.2]
[1766759334640,2.31724322,124.58,124.56,0.2]
[1766759335329,2.31724322,124.57,124.56,0.2]
[1766759338243,8.02645825,124.59,124.56,0.2]
[1766759338431,2.31724322,124.57,124.56,0.2]
[1766759338837,8.02568218,124.6,124.56,0.2]
[1766759339023,2.31724322,124.57,124.56,0.2]
[1766759339223,2.31724322,124.58,124.56,0.2]
[1766759340442,8.0266348,124.59,124.56,0.2]
[1766759340643,2.31724322,124.58,124.56,0.2]
[1766759341039,8.02707671,124.58,124.56,0.2]
[1766759341231,2.31724322,124.57,124.55,0.1]
[1766759341428,8.02707671,124.58,124.55,0.1]
[1766759341429,2.31724322,124.56,124.55,0.1]
[1766759342034,2.31724322,124.57,124.55,0.1]
[1766759346433,22.68707671,124.58,124.55,0.1]
[1766759346630,2.31724322,124.57,124.55,0.1]
[1766759347037,2.31724322,124.56,124.55,0.1]
[1766759347624,22.68707671,124.58,124.55,0.1]
[1766759348030,14.66,124.58,124.55,0.1]
[1766759348224,22.68632635,124.59,124.55,0.1]
[1766759348732,2.31724322,124.58,124.55,0.1]
[1766759349150,104.9,124.66,124.55,0.1]
[1766759349350,104.9,124.66,124.56,2.31724322]
[1766759349351,2.31724322,124.61,124.56,2.31724322]
[1766759350056,2.31724322,124.6,124.57,8.02761499]
[1766759350227,2.31724322,124.58,124.55,0.1]
[1766759350429,2.31724322,124.58,124.55,8.12876873]
[1766759350627,2.31724322,124.56,124.54,0.2]
[1766759350830,10.43767296,124.6,124.54,0.2]
[1766759351237,2.31724322,124.57,124.54,0.2]
[1766759352159,10.43767296,124.6,124.54,8.22931647]
[1766759352456,2.31724322,124.58,124.54,8.22931647]
[1766759352663,2.31724322,124.57,124.54,8.22931647]
[1766759352843,2.31724322,124.56,124.54,0.2]
[1766759353243,38.52762903,124.6,124.54,0.2]
[1766759353442,2.31724322,124.56,124.54,0.2]
[1766759354535,2.31724322,124.57,124.54,8.22934869]
[1766759355832,8.02663398,124.59,124.54,8.22934869]
[1766759356030,2.31724322,124.57,124.54,8.22934869]
[1766759357060,22.68663398,124.59,124.54,8.22934869]
[1766759357262,2.31724322,124.57,124.54,8.22934869]
[1766759359156,2.31724322,124.56,124.54,8.22934869]
[1766759361240,22.68663398,124.59,124.54,8.22934869]
[1766759361568,2.31724322,124.57,124.54,8.22934869]
[1766759362058,3.62326365,124.57,124.54,8.22934869]
[1766759363573,22.68663398,124.59,124.54,8.22934869]
[1766759363751,3.62326365,124.57,124.54,8.22934869]
[1766759364854,22.68663398,124.59,124.54,8.22934869]
[1766759365170,3.62326365,124.57,124.54,8.22934869]
[1766759365550,22.68663398,124.59,124.54,8.22934869]
[1766759365866,8.02663398,124.59,124.54,11.85261234]
[1766759366262,3.62326365,124.58,124.54,8.22934869]
[1766759366454,3.62326365,124.58,124.54,11.85261234]
[1766759367468,3.62326365,124.58,124.54,8.22934869]
[1766759367655,3.62326365,124.58,124.54,11.85261234]
[1766759367850,3.62326365,124.58,124.54,8.22934869]
[1766759368463,8.02663398,124.59,124.54,8.22934869]
[1766759368781,3.62326365,124.58,124.54,8.22934869]
[1766759369081,8.02663398,124.59,124.54,8.22934869]
[1766759369248,3.62326365,124.58,124.54,8.22934869]
[1766759370170,3.62326365,124.58,124.54,11.85261234]
[1766759370355,3.62326365,124.58,124.54,8.22934869]
[1766759371573,3.62326365,124.56,124.54,8.22934869]
[1766759371749,3.62326365,124.56,124.54,0.2]
[1766759371948,11.65032691,124.58,124.54,0.2]
[1766759372351,3.62326365,124.57,124.54,0.2]
[1766759373774,128.97,124.63,124.54,0.2]
[1766759373775,3.62326365,124.64,124.58,10.43767296]
[1766759373978,3.62326365,124.63,124.59,14.66]
[1766759374277,3.62326365,124.61,124.56,3.62326365]
[1766759374450,10.43767296,124.63,124.56,3.62326365]
[1766759374774,3.62326365,124.61,124.56,3.62326365]
[1766759374977,3.62326365,124.61,124.55,15.4628904]
[1766759375175,3.62326365,124.61,124.57,8.02761499]
[1766759379181,3.62326365,124.61,124.56,11.65152312]
[1766759382087,3.62326365,124.61,124.56,8.02825947]
[1766759382394,3.62326365,124.61,124.56,11.65152312]
[1766759386770,8.02460024,124.62,124.56,11.65152312]
[1766759386970,3.62326365,124.62,124.57,3.62326365]
[1766759387288,3.62326365,124.63,124.57,3.62326365]
[1766759388271,3.62326365,124.63,124.58,8.02697062]
[1766759389168,3.62326365,124.63,124.58,11.65023427]
[1766759391487,11.64721668,124.63,124.58,11.65023427]
[1766759391695,3.62326365,124.61,124.57,8.02749711]
[1766759392580,3.62326365,124.6,124.57,8.02749711]
[1766759392892,3.62326365,124.58,124.54,0.2]
[1766759393095,14.06093661,124.59,124.55,8.0288055]
[1766759393596,3.62326365,124.59,124.55,8.0288055]
[1766759395893,0.69,124.58,124.55,8.0288055]
[1766759396094,0.69,124.59,124.55,11.65206915]
[1766759396294,20.05674346,124.65,124.56,3.62326365]
[1766759396476,0.69,124.62,124.58,3.62326365]
[1766759396676,0.69,124.62,124.57,28.09665247]
[1766759397789,0.69,124.62,124.57,31.71991612]
[1766759398410,0.69,124.62,124.57,28.09665247]
[1766759399007,0.69,124.61,124.57,28.09665247]
[1766759400307,8.02310654,124.64,124.58,0.69]
[1766759400308,3.62326365,124.64,124.58,0.69]
[1766759400482,8.02112664,124.68,124.61,0.69]
[1766759400800,64.36448724,124.71,124.63,10.43767296]
[1766759400801,4.38842886,124.71,124.63,10.43767296]
[1766759401106,27.06728375,124.71,124.63,15.35]
[1766759401405,3.62326365,124.64,124.61,8.02491205]
[1766759401607,3.62326365,124.63,124.61,8.02491205]
[1766759401779,10.43767296,124.68,124.61,8.71491205]
[1766759401981,3.62326365,124.65,124.61,8.71491205]
[1766759402199,3.62326365,124.62,124.59,10.43767296]
[1766759402380,0.69,124.59,124.56,15.46269706]
[1766759402590,3.62326365,124.62,124.54,20.27227807]
[1766759402802,0.69,124.58,124.54,0.2]
[1766759403100,10.43767296,124.6,124.54,22.68954873]
[1766759403302,3.62326365,124.61,124.55,0.7]
[1766759403479,3.62326365,124.58,124.55,0.7]
[1766759403688,14.06093661,124.62,124.55,0.7]
[1766759403886,3.62326365,124.57,124.55,0.7]
[1766759404086,3.62326365,124.56,124.53,8.92999064]
[1766759404414,14.06093661,124.62,124.53,8.92999064]
[1766759404415,14.06093661,124.62,124.54,23.38935755]
[1766759404605,3.62326365,124.55,124.53,0.2]
[1766759404783,3.62326365,124.56,124.53,22.89006071]
[1766759404982,3.62326365,124.58,124.54,0.7]
[1766759405211,4.31326365,124.6,124.55,0.7]
[1766759405411,0.69,124.58,124.56,14.66]
[1766759405613,0.69,124.58,124.56,15.36]
[1766759405614,4.31326365,124.58,124.56,15.36]
[1766759405797,0.69,124.6,124.56,15.36]
[1766759405996,0.69,124.59,124.56,15.36]
[1766759406201,4.31326365,124.59,124.56,15.36]
[1766759406399,0.69,124.59,124.56,15.36]
[1766759406578,4.31326365,124.59,124.56,15.36]
[1766759406783,0.69,124.61,124.57,0.7]
[1766759406997,4.31326365,124.61,124.58,8.02697062]
[1766759407196,4.31326365,124.61,124.59,14.66]
[1766759407704,0.69,124.61,124.59,14.66]
[1766759407913,8.02327632,124.64,124.59,15.36]
[1766759408084,4.31326365,124.62,124.59,15.36]
[1766759408285,0.69,124.62,124.59,15.36]
[1766759408485,4.31326365,124.62,124.59,15.36]
[1766759408900,18.4603425,124.65,124.6,0.7]
[1766759409101,0.69,124.61,124.58,8.02683985]
[1766759409314,4.31326365,124.59,124.57,14.66]
[1766759409730,0.69,124.59,124.57,14.66]
[1766759410421,14.75093661,124.62,124.58,8.02645458]
[1766759410620,14.75093661,124.62,124.59,0.7]
[1766759411006,8.02257323,124.65,124.6,14.66]
[1766759411206,4.31326365,124.63,124.6,15.36]
[1766759411412,4.31326365,124.62,124.6,14.66]
[1766759411603,4.31326365,124.62,124.59,8.72624257]
[1766759411824,3.62326365,124.6,124.56,0.7]
[1766759412123,0.69,124.6,124.57,8.72713607]
[1766759412421,3.62326365,124.61,124.58,8.72689306]
[1766759412650,10.43767296,124.62,124.58,27.01015671]
[1766759412651,4.31326365,124.62,124.58,27.01015671]
[1766759412827,0.69,124.62,124.59,8.72603196]
[1766759413205,8.02257323,124.65,124.6,3.62326365]
[1766759413410,0.69,124.63,124.6,0.7]
[1766759414113,10.43767296,124.65,124.6,3.62326365]
[1766759414312,0.72,124.65,124.61,18.28326365]
[1766759414507,4.34326365,124.65,124.62,0.71]
[1766759414830,0.72,124.65,124.62,0.71]
[1766759415005,4.34326365,124.65,124.62,15.37]
[1766759415412,0.72,124.65,124.62,15.37]
[1766759415633,4.34326365,124.65,124.62,15.37]
[1766759415831,0.72,124.67,124.63,0.71]
[1766759416045,0.72,124.66,124.62,8.02421]
[1766759416344,3.62326365,124.63,124.61,0.71]
[1766759416508,0.72,124.64,124.6,23.39525623]
[1766759416935,3.62326365,124.63,124.6,23.39525623]
[1766759417130,0.72,124.63,124.6,23.39525623]
[1766759417836,4.34326365,124.64,124.61,0.71]
[1766759418010,0.72,124.64,124.61,4.33326365]
[1766759418210,3.62326365,124.65,124.61,4.33326365]
[1766759418533,4.34326365,124.65,124.62,0.71]
[1766759418713,3.62326365,124.65,124.61,3.62326365]
[1766759418909,4.34326365,124.65,124.61,4.33326365]
[1766759419520,0.72,124.64,124.61,4.33326365]
[1766759419721,4.34326365,124.66,124.62,12.3576578]
[1766759420333,0.72,124.65,124.62,12.3576578]
[1766759420835,3.62326365,124.64,124.62,14.66]
[1766759421522,4.34326365,124.64,124.62,14.66]
[1766759421833,14.06093661,124.68,124.61,8.7348568]
[1766759421834,4.34326365,124.63,124.61,14.66]
[1766759422027,0.72,124.63,124.61,14.66]
[1766759422235,3.03628246,124.63,124.61,14.66]
[1766759422431,0.72,124.63,124.61,14.66]
[1766759422733,3.03628246,124.65,124.62,0.71]
[1766759422934,2.31628246,124.66,124.63,0.71]
[1766759423238,3.03628246,124.66,124.63,0.71]
[1766759423932,3.03628246,124.68,124.65,0.71]
[1766759424337,0.72,124.65,124.6,8.02528004]
[1766759424538,3.03628246,124.63,124.6,8.02528004]
[1766759424720,3.03628246,124.66,124.62,0.71]
[1766759425032,3.03628246,124.66,124.62,2.31628246]
[1766759425241,0.72,124.67,124.64,0.71]
[1766759425428,3.03628246,124.67,124.64,0.71]
[1766759425623,2.31628246,124.66,124.64,0.71]
[1766759425936,2.31628246,124.65,124.6,22.38048791]
[1766759426133,2.31628246,124.66,124.62,2.31628246]
[1766759426331,0.72,124.67,124.63,8.023628]
[1766759426531,2.31628246,124.66,124.63,8.023628]
[1766759426835,2.31628246,124.65,124.61,14.64]
[1766759427015,2.31628246,124.65,124.61,16.95628246]
[1766759427215,2.31628246,124.65,124.61,22.664817]
[1766759427742,2.31628246,124.64,124.61,22.664817]
[1766759428042,2.31628246,124.65,124.61,22.664817]
[1766759428540,2.31628246,124.64,124.61,22.664817]
[1766759428743,2.31628246,124.65,124.61,8.024817]
[1766759429338,2.31628246,124.66,124.61,30.40369475]
[1766759429522,2.31628246,124.65,124.61,28.08741229]
[1766759430256,2.31628246,124.68,124.6,8.02544385]
[1766759430420,2.31628246,124.64,124.6,8.02544385]
[1766759430749,2.31628246,124.63,124.6,8.02544385]
[1766759430921,2.31628246,124.63,124.58,10.43767296]
[1766759430922,10.43767296,124.64,124.57,20.06817878]
[1766759431121,10.43767296,124.64,124.57,37.02446124]
[1766759431318,28.07411566,124.67,124.59,2.31628246]
[1766759431539,28.07411566,124.67,124.58,20.06641901]
[1766759431540,2.31628246,124.63,124.58,20.06641901]
[1766759431739,2.31628246,124.63,124.58,22.38270147]
[1766759432440,8.02319204,124.64,124.59,8.02632635]
[1766759432653,2.31628246,124.62,124.59,8.02632635]
[1766759433147,2.31628246,124.63,124.59,8.02632635]
[1766759433446,2.31628246,124.63,124.58,28.09338963]
[1766759434545,2.31628246,124.59,124.55,18.46632952]
[1766759434851,2.31628246,124.58,124.54,14.64]
[1766759435178,2.31628246,124.58,124.54,22.66938494]
[1766759435336,2.31628246,124.57,124.54,22.66938494]
[1766759435949,2.31628246,124.56,124.53,0.2]
[1766759436246,2.31628246,124.55,124.53,0.2]
[1766759436449,2.31628246,124.56,124.53,0.2]
[1766759436748,2.31628246,124.55,124.53,0.2]
[1766759437052,2.31628246,124.56,124.53,0.2]
[1766759437255,2.31628246,124.56,124.53,8.23018343]
[1766759437956,8.0274307,124.58,124.53,0.2]
[1766759438159,2.31628246,124.55,124.53,0.2]
[1766759438642,2.31628246,124.54,124.52,0.2]
[1766759438848,2.31628246,124.53,124.52,0.2]
[1766759439053,2.31628246,124.53,124.51,0.1]
[1766759440741,2.31628246,124.52,124.51,0.1]
[1766759441260,2.31628246,124.52,124.49,0.2]
[1766759441466,2.31628246,124.5,124.48,0.1]
[1766759441659,2.31628246,124.49,124.45,4.18897655]
[1766759441830,2.31628246,124.47,124.44,8.03550671]
[1766759442030,10.43767296,124.52,124.44,8.03550671]
[1766759442228,10.43767296,124.52,124.42,0.1]
[1766759442229,6.22055111,124.46,124.42,0.1]
[1766759442539,6.22055111,124.45,124.42,0.1]
[1766759442750,6.22055111,124.45,124.42,8.13727986]
[1766759443053,18.471354,124.48,124.42,8.13727986]
[1766759443355,6.22055111,124.48,124.43,6.22055111]
[1766759443757,6.22055111,124.46,124.42,28.23051245]
[1766759444061,10.43767296,124.5,124.42,8.13727986]
[1766759444259,10.43767296,124.5,124.42,0.1]
[1766759444458,6.22055111,124.43,124.41,0.1]
[1766759444758,18.47561203,124.41,124.35,12.22991735]
[1766759444963,18.47561203,124.41,124.35,4.18830462]
[1766759444964,6.22055111,124.36,124.35,4.18830462]
[1766759445163,6.22055111,124.36,124.32,8.04348386]
[1766759445164,16.65822407,124.36,124.32,8.04348386]
[1766759445337,28.13278675,124.41,124.31,8.04389688]
[1766759445532,38.56816126,124.42,124.34,6.22055111]
[1766759445735,38.56816126,124.42,124.36,6.22055111]
[1766759445736,10.43767296,124.42,124.36,6.22055111]
[1766759446035,6.22055111,124.4,124.36,0.66]
[1766759446240,18.47511197,124.42,124.34,0.66]
[1766759446450,0.72,124.39,124.34,6.88055111]
[1766759446650,0.72,124.39,124.34,0.66]
[1766759446861,14.66,124.45,124.38,6.22055111]
[1766759446862,0.72,124.45,124.38,6.22055111]
[1766759447049,14.66,124.52,124.43,6.22055111]
[1766759447250,6.94055111,124.45,124.4,15.32]
[1766759447449,6.22055111,124.44,124.4,0.66]
[1766759447673,6.94055111,124.44,124.38,25.75767296]
[1766759447869,0.72,124.44,124.38,11.09767296]
[1766759448071,0.72,124.44,124.39,0.66]
[1766759448246,6.94055111,124.42,124.37,6.88055111]
[1766759448451,6.22055111,124.42,124.37,6.88055111]
[1766759448672,0.72,124.42,124.38,0.66]
[1766759448975,6.94055111,124.43,124.39,8.03923144]
[1766759449175,0.72,124.46,124.39,8.69923144]
[1766759449385,0.72,124.46,124.39,14.91978255]
[1766759449584,0.72,124.44,124.39,14.91978255]
[1766759449752,6.94055111,124.44,124.39,14.91978255]
[1766759449954,6.94055111,124.4,124.34,26.98589068]
[1766759450258,6.94055111,124.4,124.34,20.76533957]
[1766759450259,6.22055111,124.39,124.34,20.76533957]
[1766759450461,0.72,124.4,124.35,0.66]
[1766759450674,6.94055111,124.4,124.35,6.88055111]
[1766759451051,0.72,124.4,124.36,8.04064677]
[1766759451251,0.72,124.4,124.36,0.66]
[1766759451479,6.94055111,124.4,124.37,8.04033414]
[1766759451652,6.94055111,124.4,124.35,8.04180282]
[1766759451858,6.94055111,124.39,124.35,8.04180282]
[1766759452052,0.72,124.47,124.38,6.88055111]
[1766759452267,0.72,124.44,124.4,10.43767296]
[1766759452482,0.72,124.44,124.4,6.22055111]
[1766759452777,6.94055111,124.44,124.4,6.22055111]
[1766759453082,0.72,124.49,124.43,6.22055111]
[1766759453379,0.72,124.49,124.43,15.32]
[1766759453570,6.94055111,124.49,124.44,0.80360012]
[1766759453771,0.72,124.49,124.45,6.22055111]
[1766759454079,0.72,124.49,124.46,8.03470994]
[1766759454453,0.72,124.49,124.46,14.25526105]
[1766759454877,0.72,124.52,124.47,6.22055111]
[1766759455283,0.72,124.52,124.46,14.25526105]
[1766759455577,8.02890405,124.55,124.47,6.22055111]
[1766759455578,0.72,124.51,124.47,6.22055111]
[1766759455882,6.94055111,124.53,124.49,8.03277371]
[1766759456582,0.72,124.52,124.49,8.03277371]
[1766759456757,6.94055111,124.52,124.49,8.03277371]
[1766759457186,0.72,124.52,124.49,8.03277371]
[1766759457386,6.94055111,124.52,124.48,8.03327978]
[1766759457714,0.72,124.52,124.48,8.03327978]
[1766759457857,6.94055111,124.52,124.48,8.03327978]
[1766759458057,6.94055111,124.52,124.51,6.22055111]
[1766759458058,0.72,124.52,124.51,6.22055111]
[1766759458275,0.72,124.52,124.48,8.03327978]
[1766759458485,0.72,124.52,124.48,8.69327978]
[1766759458779,0.72,124.52,124.51,6.22055111]
[1766759458984,0.72,124.52,124.48,8.03327978]
[1766759459191,0.72,124.52,124.51,6.22055111]
[1766759459360,0.62,124.51,124.49,6.22055111]
[1766759460358,0.62,124.51,124.48,6.22055111]
[1766759460578,10.43767296,124.51,124.5,6.22055111]
[1766759460761,10.43767296,124.52,124.5,6.22055111]
[1766759460956,14.66,124.56,124.51,6.22055111]
[1766759461182,14.86,124.62,124.55,6.22055111]
[1766759461480,14.86,124.62,124.49,48.90264729]
[1766759461481,8.2248607,124.62,124.59,6.22055111]
[1766759461681,8.2248607,124.62,124.58,6.22055111]
[1766759461985,8.2248607,124.62,124.56,0.66]
[1766759462162,0.2,124.62,124.6,6.22055111]
[1766759462361,10.43767296,124.61,124.6,6.22055111]
[1766759462561,10.43767296,124.61,124.58,6.22055111]
[1766759462765,8.22460508,124.62,124.55,0.66]
[1766759462970,10.43767296,124.59,124.55,0.66]
[1766759463169,10.43767296,124.59,124.51,6.1281]
[1766759463170,10.43767296,124.59,124.56,6.22055111]
[1766759464084,10.43767296,124.58,124.57,6.22055111]
[1766759464257,10.43767296,124.58,124.56,6.22055111]
[1766759464973,18.46406797,124.59,124.56,6.22055111]
[1766759465174,18.46406797,124.59,124.55,6.22055111]
[1766759465980,6.22055111,124.57,124.5,0.66]
[1766759466263,6.22055111,124.54,124.49,6.22055111]
[1766759466970,10.43767296,124.53,124.5,6.22055111]
[1766759467178,6.22055111,124.54,124.49,6.88055111]
[1766759467372,6.22055111,124.54,124.49,0.66]
[1766759467576,6.22055111,124.53,124.49,0.66]
[1766759468179,14.25058604,124.54,124.49,6.88055111]
[1766759468376,6.22055111,124.51,124.47,0.66]
[1766759468691,31.31822407,124.52,124.47,0.66]
[1766759468893,31.31822407,124.52,124.47,6.88055111]
[1766759469076,25.09767296,124.52,124.47,6.88055111]
[1766759469272,25.09767296,124.52,124.48,6.22055111]